Cogmind - Beta 13 @@@ ROGUE MODE // 2024.05.05 @ 10:52:30 Player: Gabe+Kate4EVR Result: Destroyed by G-47 Trooper with Particle Gun Performance ------------- Evolutions (2) 1000 Regions Visited (3) 600 Robots Destroyed (68) 340 Value Destroyed (1430) 1430 Prototype IDs (4) 80 Alien Tech Used (0) 0 Bonus (70) 70 TOTAL SCORE: 3520 Bonus ------- High Alert Combat Kills 70 Cogmind --------- Core Integrity 0/550 Matter 300/300 Energy 280/280 System Corruption 0% Temperature Cool (9) Movement Treading (240) Ox1 Location -8/Materials Parts ------- > --- POWER (1) -------- Cooled Ion Engine > --- PROPULSION (2) --- Light Treads > --- UTILITY (6) ------ Medium Storage Unit Improved Targeting Computer Core Shielding > --- WEAPON (2) ------- Axe > --- INVENTORY (10) --- Wheel Cryofiber Web High-capacity Matter Pod (199) Hacking Suite Shock Rifle Medium Laser Shotgun Improved Grenade Launcher Improved Grenade Launcher Missile Launcher Peak State ------------ > --- POWER ------------ Cooled Ion Engine > --- PROPULSION ------- Aluminum Leg Titanium Leg > --- UTILITY ---------- Advanced Heat Sink Medium Storage Unit Targeting Computer Targeting Computer Improved Targeting Computer Hacking Suite > --- WEAPON ----------- High-powered Shotgun Improved Light Cannon > --- INVENTORY -------- Improved Ion Engine High-capacity Matter Pod Hacking Suite Medium Laser Medium Laser Improved Light Cannon Improved Grenade Launcher Improved Grenade Launcher Improved Grenade Launcher Missile Launcher [Rating: 27] Favorites ----------- Power Cooled Ion Engine Engine Cooled Ion Engine Power Core Light Nuclear Core Propulsion Aluminum Leg Treads Light Treads Leg Aluminum Leg Wheel Wheel Utility Targeting Computer Device Cooling System Storage Medium Storage Unit Processor Targeting Computer Hackware Hacking Suite Protection Hardened Medium Armor Plating Weapon Improved Light Cannon Energy Gun Small Laser Ballistic Gun High-powered Shotgun Ballistic Cannon Improved Light Cannon Launcher Improved Grenade Launcher Slashing Weapon Axe Build | -11 -10 -9 -8 ------- Run | Yrd Mat Mat Mat Slots Evolved 4 | . . 2 2 Power . | . . . . Propulsion . | . . . . Utility 4 | . . 2 2 Weapon . | . . . . Parts Attached 61 | 6 12 5 38 Power 9 | 1 4 1 3 Engine 8 | 1 4 1 2 Core 1 | . . . 1 Reactor . | . . . . Propulsion 17 | 2 4 . 11 Treads 2 | . . . 2 Leg 10 | 2 4 . 4 Wheel 5 | . . . 5 Hover . | . . . . Flight . | . . . . Utility 17 | 1 2 2 12 Device 4 | . . . 4 Storage 2 | 1 1 . . Processor 4 | . 1 2 1 Hackware 1 | . . . 1 Protection 6 | . . . 6 Artifact . | . . . . Weapon 18 | 2 2 2 12 Energy Gun 6 | 2 2 . 2 Energy Cannon . | . . . . Ballistic Gun 2 | . . . 2 Ballistic Cannon 4 | . . 2 2 Launcher 5 | . . . 5 Special Weapon . | . . . . Impact Weapon . | . . . . Slashing Weapon 1 | . . . 1 Piercing Weapon . | . . . . Special Melee Weapon . | . . . . Unidentified Prototypes 1 | . . 1 . Parts Lost 22 | . 3 . 19 Power 2 | . 1 . 1 Propulsion 4 | . . . 4 Utility 9 | . . . 9 Weapon 7 | . 2 . 5 Highest Loss Streak 9 | . 3 . 9 To Critical Strikes . | . . . . Average Slot Usage (%) 90 | . 98 100 84 Engine 7 | . 13 11 4 Leg 15 | . 28 22 9 Wheel 1 | . . . 1 Device 1 | . . . 1 Storage 10 | . 14 11 9 Processor 22 | . 13 33 23 Protection 9 | . . . 15 Energy Gun 8 | . 27 1 2 Ballistic Gun 2 | . . . 3 Ballistic Cannon 5 | . . 20 4 Launcher 1 | . . . 2 Slashing Weapon 2 | . . . 3 Naked Turns . | . . . . Heaviest Build 36 | 10 18 26 36 Greatest Support 40 | 20 20 20 40 Greatest Overweight (x) 10 | 1 . 1 10 Average Overweight (x) 1 | . . . 2 Largest Inventory Capacity 10 | 8 10 10 10 Average Capacity 9 | 6 9 10 10 Most Carried 10 | 6 10 10 10 Average Carried 9 | 3 8 9 9 Final Capacity 10 | 8 10 10 10 Final Carried 10 | 6 10 10 10 Class Distribution -------------------- 73% | Mutant 26% | Scavenger-Mutant Dominant Class ---------------- Scavenger-Mutant | -10/Materials Mutant | -9/Materials Mutant | -8/Materials Resources | -11 -10 -9 -8 ----------- Run | Yrd Mat Mat Mat Matter Collected 1520 | 239 136 82 1063 Remotely . | . . . . Salvage Created 1919 | . 321 143 1455 Parts 144 | . 28 8 108 Haulers Intercepted 5 | . 1 . 4 Recyclers Shooed 2 | . . 1 1 Parts Field Recycled . | . . . . Retrieved Matter . | . . . . Parts Self-Destructed . | . . . . Prevented . | . . . . Kills | -11 -10 -9 -8 ------- Run | Yrd Mat Mat Mat Combat Hostiles Destroyed 41 | . 10 1 30 Melee 5 | . . . 5 Guns 17 | . 10 . 7 Cannons 8 | . . 1 7 AOE 11 | . . . 11 Classes Destroyed 12 | . 4 3 5 Worker 6 | . . . 6 Builder 5 | . . . 5 Tunneler 3 | . 2 . 1 Hauler 5 | . 1 . 4 Recycler 6 | . . 1 5 Operator 1 | . . 1 . Watcher 1 | . . . 1 Swarmer 17 | . 6 . 11 Grunt 15 | . 4 . 11 Sentry 6 | . . 1 5 Specialist 2 | . . . 2 Heavy 1 | . . . 1 Best Kill Streak 16 | . 4 2 16 Combat Bots Only 13 | . 3 1 13 Max Kills in Single Turn 5 | . 1 1 5 Gunslinging . | . . . . Exploded 4 | . . . 4 Melee 1 | . . . 1 Uniques/NPCs Destroyed . | . . . . Combat | -11 -10 -9 -8 -------- Run | Yrd Mat Mat Mat Hostile Shots Fired 294 | . 72 7 215 Missed 74 | . 14 3 57 Damage Taken 3392 | . 561 52 2779 Core 706 | . 145 . 561 Absorbed by Shields . | . . . . Redirected to Shielding 147 | . . . 147 Core Remaining (%) 80 | 100 42 100 . Volleys Fired 103 | . 41 5 57 Largest 2 | . 2 2 2 Hottest 90 | . 90 78 78 Shots Fired 191 | . 77 10 104 Gun 118 | . 77 . 41 Cannon 54 | . . 10 44 Launcher 19 | . . . 19 Special . | . . . . Kinetic 91 | . . 10 81 Thermal 81 | . 77 . 4 Explosive 19 | . . . 19 Electromagnetic . | . . . . Robot Hit Streak 12 | . 12 3 11 Robot Miss Streak 6 | . 6 1 3 Penetration Max . | . . . . Secondary Targets 1 | . 1 . . Max Gunslinging Chain 1 | . 1 . . Shots Hit Robots 167 | . 48 7 112 Core Hits 100 | . 19 3 78 Critical Kills . | . . . . Critical Parts Destroyed . | . . . . Critical Strikes 8 | . 1 . 7 Burn 2 | . 1 . 1 Blast 1 | . . . 1 Sever 5 | . . . 5 Melee Attacks 39 | . . . 39 Impact . | . . . . Slashing 39 | . . . 39 Piercing . | . . . . Sneak Attacks 10 | . . . 10 Combat Hostiles . | . . . . Follow-up Attacks . | . . . . Damage Inflicted 5471 | . 592 143 4736 Guns 1376 | . 589 . 787 Cannons 778 | . . 143 635 Explosions 1706 | . . . 1706 Melee 1608 | . . . 1608 Ramming 3 | . 3 . . Kinetic 1511 | . . 143 1368 Thermal 643 | . 589 . 54 Explosive 1706 | . . . 1706 Electromagnetic . | . . . . Impact . | . . . . Slashing 1608 | . . . 1608 Piercing . | . . . . Highest Corruption . | . . . . Average Corruption . | . . . . Corruption Purged . | . . . . Corruption Blocked . | . . . . Overload Shots . | . . . . Overflow Damage 223 | . . . 223 Projectiles 5 | . . . 5 Explosions 60 | . . . 60 Melee 158 | . . . 158 Knockbacks 7 | . . 2 5 Impact . | . . . . Kinetic 7 | . . 2 5 Secondary . | . . . . Self-Inflicted Damage 154 | . . . 154 Shots 5 | . . . 5 Rammed . | . . . . Targets Rammed 1 | . 1 . . Kicked 1 | . 1 . . Crushed . | . . . . Highest Temperature 212 | . 212 18 118 Average Temperature 58 | . 74 6 39 Received Heat Transfer 1167 | . 204 9 954 Siege Activations . | . . . . Robots Corrupted . | . . . . Combat Hostiles . | . . . . Parts Fried . | . . . . Impact Corruptions . | . . . . Robots Melted . | . . . . Combat Hostiles . | . . . . Parts Melted 2 | . 2 . . Heat Transferred 1680 | . 1458 . 222 Parts Sabotaged . | . . . . Parts Stolen . | . . . . Parts Stripped . | . . . . Power Chain Reactions . | . . . . Alert | -11 -10 -9 -8 ------- Run | Yrd Mat Mat Mat Peak Influence 450 | . 222 116 450 Initial 48 | . . 31 48 Average 197 | . 80 77 274 Maximum Alert Level 2 | . 1 . 2 Low Security (%) 53 | 100 82 100 30 Level 1 33 | . 17 . 48 Level 2 12 | . . . 21 Level 3 . | . . . . Level 4 . | . . . . Level 5 . | . . . . High Security . | . . . . Max Security . | . . . . Squads Dispatched 5 | . 2 . 3 Investigation 2 | . 1 . 1 Extermination . | . . . . Reinforcement 3 | . 1 . 2 Assault . | . . . . Garrison . | . . . . Intercept . | . . . . Searches Triggered . | . . . . Construction Impeded . | . . . . Haulers Reinforced . | . . . . Active Scanning Responses . | . . . . Cargo Convoy Interrupts . | . . . . Stealth | -11 -10 -9 -8 --------- Run | Yrd Mat Mat Mat Distress Signals 2 | . 1 . 1 Communications Jammed . | . . . . Distress Signals . | . . . . Times Spotted 75 | . 20 7 48 Peak Tracking Total 7 | . 5 5 7 Tactical Retreats 2 | . . . 2 Traps | -11 -10 -9 -8 ------- Run | Yrd Mat Mat Mat Traps Triggered 1 | . 1 . . Indirectly . | . . . . Trap Hack Attempts . | . . . . Triggered . | . . . . Disarmed . | . . . . Reprogrammed . | . . . . Reused . | . . . . Traps Extracted . | . . . . Installed . | . . . . Triggered . | . . . . Machines | -11 -10 -9 -8 ---------- Run | Yrd Mat Mat Mat Machines Disabled 2 | . . . 2 Max in Single Turn 1 | . . . 1 Machines Repaired . | . . . . Machines Dismantled . | . . . . Machines Sabotaged . | . . . . Overloaded Fab Kills . | . . . . Hacking | -11 -10 -9 -8 --------- Run | Yrd Mat Mat Mat Machines Accessed 7 | . 4 . 3 Terminals 5 | . 3 . 2 Fabricators . | . . . . Repair Stations 1 | . . . 1 Recycling Units 1 | . 1 . . Scanalyzers . | . . . . Garrison Access . | . . . . Total Hacks 15 | . 7 . 8 Successful 8 | . 6 . 2 Failed 7 | . 1 . 6 Catastrophic 1 | . . . 1 Database Lockouts . | . . . . Manual 6 | . 3 . 3 Terminals 8 | . 5 . 3 Fabricators . | . . . . Repair Stations 5 | . . . 5 Recycling Units 2 | . 2 . . Scanalyzers . | . . . . Garrison Access . | . . . . Terminal Hacks 5 | . 4 . 1 Prototype ID Bank 2 | . 2 . . Unreport Threat 2 | . 1 . 1 Hauler Manifests 1 | . 1 . . Fabricator Hacks . | . . . . Repair Station Hacks 1 | . . . 1 Scan Component 1 | . . . 1 Recycling Unit Hacks 2 | . 2 . . Report Inventory 1 | . 1 . . Retrieve Components 1 | . 1 . . Scanalyzer . | . . . . Garrison Access Hacks . | . . . . Unauthorized Hacks . | . . . . Terminals . | . . . . Fabricators . | . . . . Repair Stations . | . . . . Recycling Units . | . . . . Scanalyzers . | . . . . Garrison Access . | . . . . Data Cores Recovered 1 | . . 1 . Used . | . . . . Hacking Detections 2 | . 1 . 1 Full Trace Events 1 | . . . 1 Feedback Events . | . . . . Feedback Blocked . | . . . . Robot Schematics Acquired . | . . . . Robots Built . | . . . . Authchips . | . . . . Time . | . . . . Total Robot Build Rating . | . . . . Part Schematics Acquired . | . . . . Parts Built . | . . . . Authchips . | . . . . Time . | . . . . Total Part Build Rating . | . . . . Parts Repaired . | . . . . Time . | . . . . Parts Recycled . | . . . . Recycled Matter . | . . . . Retrieved Matter . | . . . . Retrieved Components 10 | . 10 . . Parts Scanalyzed . | . . . . Part Schematics Acquired . | . . . . Parts Damaged . | . . . . Bothacking | -11 -10 -9 -8 ------------ Run | Yrd Mat Mat Mat Used RIF Installer . | . . . . Robots Hacked . | . . . . Non-combat . | . . . . Combat . | . . . . Robot Hacks Applied . | . . . . Relay Couplers Released . | . . . . Fabnet Peak Effective % . | . . . . Robots Rewired . | . . . . Allies Hacked . | . . . . Hacks Repelled . | . . . . Allies | -11 -10 -9 -8 -------- Run | Yrd Mat Mat Mat Total Allies . | . . . . Largest Group . | . . . . Highest-Rated Group . | . . . . Highest-Rated Ally . | . . . . Total Orders . | . . . . Ally Attacks . | . . . . Total Damage . | . . . . Kills . | . . . . Allies Corrupted . | . . . . Allies Melted . | . . . . Intel | -11 -10 -9 -8 ------- Run | Yrd Mat Mat Mat Robot Analysis Total . | . . . . Derelict Logs Recovered . | . . . . Drone Launches . | . . . . Drone Recoveries . | . . . . Exploration | -11 -10 -9 -8 ------------- Run | Yrd Mat Mat Mat Turns Passed 3002 | 68 716 376 1842 Spaces Moved 1347 | 45 467 186 649 Core 120 | 6 . . 114 Treads 37 | . . . 37 Legs 1109 | 39 467 186 417 Wheels 81 | . . . 81 Hover . | . . . . Flight . | . . . . Fastest Speed 50 | 50 120 120 90 Average Speed 176 | 112 120 181 220 Slowest Speed 550 | 120 120 190 550 Overloaded Moves . | . . . . Propulsion Burnouts . | . . . . Robots Hopped . | . . . . Cave-ins Triggered . | . . . . Exploration Rate (%) 33 | 4 57 20 51 Regions Visited 3 Branch Regions . Pre-discovered Areas . | . . . . Known Exits Taken . | . . . . Unknown Exits Taken 3 | 1 1 1 . Scrap Searched . | . . . . Spaces Dug . | . . . . Terrain Destroyed 129 | . . . 129 Melee . | . . . . Projectile 1 | . . . 1 AOE 128 | . . . 128 Terrain Rammed . | . . . . Walls Destroyed . | . . . . Machines Disabled . | . . . . Actions | -11 -10 -9 -8 --------- Run | Yrd Mat Mat Mat Total 1717 | 59 548 219 891 Wait 104 | 3 13 9 79 Move 1344 | 44 466 185 649 Hop . | . . . . Pick Up 27 | 6 6 6 9 Fast Attach 30 | 6 3 3 18 Attach 11 | . 1 2 8 Detach 5 | . . 2 3 Swap 20 | . 8 . 12 Drop 33 | . 9 7 17 Fire 103 | . 41 5 57 Melee 39 | . . . 39 Ram . | . . . . Kick 1 | . 1 . . Crush . | . . . . Escape Stasis . | . . . . Rewire . | . . . . Trap . | . . . . Miscellaneous . | . . . . Route ------- -11/Scrapyard -10/Materials (discovered 2 exits: [*Mat] / [*Min]) -9/Materials -8/Materials (discovered 2 exits: [*Fac] / [*Sto]) History --------- Turn | Location | Event 10 | -11/Scrapyard | Discovered new exit (range 15) 69 | -11/Scrapyard | Entered Materials 114 | -10/Materials | Discovered new exit (range 9) 302 | -10/Materials | Build established: Mutant 611 | -10/Materials | Discovered new exit (range 11) 647 | -10/Materials | Build established: Scavenger-Mutant 696 | -10/Materials | Core integrity fell below 50% 734 | -10/Materials | Lost 3 parts (1p2w) 785 | -10/Materials | Entered another Materials area 785 | -9/Materials | Evolved 2 slots: Utility x2 1155 | -9/Materials | Discovered new exit (range 3) 1161 | -9/Materials | Entered another Materials area 1161 | -8/Materials | Evolved 2 slots: Utility x2 1183 | -8/Materials | Build established: Mutant 1797 | -8/Materials | Lost 3 parts (1n2u) 1829 | -8/Materials | Destroyed 13 combat bots 1921 | -8/Materials | Core integrity fell below 50% 1945 | -8/Materials | Lost 9 parts (1p2n3u3w) 2650 | -8/Materials | Core integrity fell below 20% 2831 | -8/Materials | Discovered new exit (range 14) 2918 | -8/Materials | Discovered new exit (range 16) 2942 | -8/Materials | Lost 4 parts (3u1w) 3003 | -8/Materials | Destroyed by G-47 Trooper with Particle Gun Last Messages --------------- 02930_ Acquired Lgt. Treads. 02941_ G-47 Trooper destroyed. 02944_ Acquired 45 matter. 02950_ Sneak attack on A-02 Transporter. 02950_ A-02 Transporter Lgt. Treads severed. 02974_ Connecting with Repair Station... >>Scan(Lgt. Armor Plating) Scanning Lgt. Armor Plating... Ready to Repair: Lgt. Armor Plating Rating: 1 Time: 26 02974_ ALERT: Suspicious activity at Repair Station M002. Dispatching Investigation squad. 02990_ Lgt. Armor Plating destroyed. 02993_ Sneak attack on R-06 Scavenger. 02993_ R-06 Scavenger destroyed. 02996_ Acquired 68 matter. 02997_ Lgt. Treads destroyed. 03000_ R-06 Scavenger collects Faulty Cld. Ion Engine. Map ----- +----------------------------------------------------+ | ???????????????????? ?????????# ## | | ?????????????????#??# ????????# ## | | ???????????????###T## ######### ## | | ???????????????# """ ! + | | ???????????????# "Y" !########### | | ????????######## ^ #?????????? | | ????????+ # #?????????? | | ????????# # """"""" #?????????? | | ????????#""" + """"""" +?????????? | | ????????#"R #? """"""" #?????????? | | ????????#""" #? """"""" #?????????? | | ????????# # """"""" #?######### | | ????????######+# ### | | ??????????# + | ! | | ??????????# ##+############### [ | | ??????????# # #????? ??????# """ | | ??????????# # #????"" "????#""""" | | ?????# #### # #????"" ""???#""""" | | ?????# + #????"" ""???#""""" | | ??????##### # #?????? ??# """ | | ??????????#!# #??????? ?# | | ??????????#=# #????????? #####/### | | ????????### ################+### = %!# | | ????????# =*!= |= ! r * | | ????????# *! %[ * = T | | ????????+ @!* [ = | | ????????# !################## # | | ????????# #????????????????###+### | | ????????## gg##?????????????????? ?? | | ?????????# #??????????????????? ""?? | | ?????????# #??????????????????? ""?? | | ?????????# #??????????????????? ???? | | ?????????# #??????????????????? ???? | | ?????????# #??????????????????? ???? | | ?????????# #???????????????????????? | | ?????????# ????????????????????????? | | ?????????+ ????????????????????????? | | ?????????# ????????????????????????? | | ?????????# ????????????????????????? | | ?????????# ????????????????????????? | | ?????????? < ????????????????????????? | | ?????????????????????????????????????? | | ?????????????????????????????????????? | | ?????????????????????????????????????? | | ?????????????????????????????????????? | | ?????????????????????????????????????? | | ?????????????????????????????????????? | | ?????????????????????????????????????? | | ?????????????????????????????????????? | | ?????????????????????????????????????? | +----------------------------------------------------+ Best States ------------- Heat Dissipation 53 Energy Generation 14 Energy Capacity 280 Matter Stores 300 Matter Capacity 300 Sight Range 16 Robot Scan Range 14 Terrain Scan Density 10 Base Temperature (-) 100 Armor Coverage 225 Core Shielding 20 Propulsion Shielding 66 Evasion (%) 55 Targeting Accuracy 21 Recoil Reduction 2 Offensive Hacking 10 Item Schematics ----------------- None Robot Schematics ------------------ None Fabricated ------------ Nothing Alien Tech Used ----------------- None Achievements -------------- None Challenges ------------ None Game ------ Seed MyomerBottomlessDoublenader Manual? 0 Play Time 00:23:09 Cumulative 149.8 hours Start 2024.05.05 @ 10:30:14 End 2024.05.05 @ 10:52:30 Sessions 1 Manual Loads 0 Difficulty Rogue Special Mode None Game No. 300 Rogue 300 Adventurer 0 Explorer 0 Win Type - Total 0 Types 0/0/0/0/0/0/0/0/0 Lore% 38 Gallery% 58 Achievement% 41 Wizard Run 0 Options --------- Layout 0 ASCII 0 Keyboard 1 Movement Numpad Keybinds 0 Fullscreen 2 Font 18/X11 Map View 76x50 Zoom Use 0% Tactical HUD 1 Map Filters NONE Filters NONE Steam 1 RUN: 2de71377-203b-4170-8df0-3821f2291a55